bitfinex/quotes_SOLUSD_20240714
["timestamp","ask_amount","ask_price","bid_price","bid_amount"]
[1720991728552,10.99,146.65,146.61,50.11537936]
[1720991729346,12.05454996,146.64,146.61,48.75144942]
[1720991729552,10.99,146.63,146.61,48.75144942]
[1720991729751,1.06454996,146.67,146.61,48.75144942]
[1720991729952,10.99,146.63,146.61,48.75144942]
[1720991730162,10.99,146.64,146.61,48.75144942]
[1720991730359,21.06454996,146.67,146.61,3.75144942]
[1720991730574,10.99,146.64,146.61,3.75144942]
[1720991732457,21.06454996,146.67,146.61,3.75144942]
[1720991732673,10.99,146.65,146.61,3.75144942]
[1720991736378,1.06454996,146.67,146.61,3.75144942]
[1720991736768,10.99,146.66,146.61,14.74144942]
[1720991736991,10.99,146.66,146.62,45.0]
[1720991740094,21.8018,146.68,146.62,45.0]
[1720991740392,10.99,146.67,146.62,55.99]
[1720991747783,12.05454996,146.66,146.62,45.0]
[1720991748400,10.99,146.65,146.61,50.11530159]
[1720991748693,1.06454996,146.64,146.61,3.75144942]
[1720991748891,10.99,146.63,146.61,3.75144942]
[1720991749100,10.99,146.64,146.61,3.75144942]
[1720991749396,10.99,146.63,146.61,3.75144942]
[1720991752607,10.99,146.64,146.61,3.75144942]
[1720991753176,16.0718,146.67,146.61,14.74144942]
[1720991753382,10.99,146.63,146.62,45.0]
[1720991753601,10.99,146.63,146.61,3.75144942]
[1720991757606,1.06454996,146.62,146.61,3.75144942]
[1720991757804,10.99,146.62,146.61,3.75144942]
[1720991758206,1.06454996,146.64,146.61,3.75144942]
[1720991758414,10.99,146.63,146.61,3.75144942]
[1720991758705,21.06454996,146.66,146.61,3.75144942]
[1720991758706,10.99,146.62,146.61,3.75144942]
[1720991759010,1.06454996,146.65,146.61,3.75144942]
[1720991759011,10.99,146.63,146.61,3.75144942]
[1720991759187,10.99,146.62,146.61,3.75144942]
[1720991761304,10.99,146.62,146.61,1.23757603]
[1720991761607,30.99,146.62,146.56,2.33160022]
[1720991761813,10.99,146.59,146.56,2.33160022]
[1720991762117,20.0,146.62,146.54,23.07598022]
[1720991762118,12.05454996,146.58,146.54,7.13928022]
[1720991763600,12.05454996,146.58,146.55,45.0]
[1720991763917,10.99,146.58,146.55,46.36457026]
[1720991764798,7.07614996,146.64,146.56,1.3645698]
[1720991765119,10.99,146.63,146.58,10.99]
[1720991765416,6.0116,146.64,146.59,46.36409169]
[1720991765600,15.754,146.66,146.59,57.35409169]
[1720991765804,15.754,146.66,146.6,10.99]
[1720991766113,15.754,146.66,146.61,46.36386922]
[1720991766114,26.744,146.66,146.61,46.36386922]
[1720991766297,26.744,146.66,146.61,45.0]
[1720991766498,10.99,146.65,146.62,1.36390966]
[1720991766813,6.2978,146.68,146.61,55.99]
[1720991767016,10.99,146.66,146.61,55.99]
[1720991767216,10.99,146.66,146.61,45.0]
[1720991768194,10.99,146.65,146.61,45.0]
[1720991768804,6.2978,146.68,146.61,45.0]
[1720991769020,10.99,146.65,146.61,45.0]
[1720991769324,10.99,146.66,146.62,1.36378689]
[1720991769501,10.99,146.66,146.61,55.99]
[1720991771012,10.99,146.65,146.61,45.0]
[1720991772510,1.06454996,146.68,146.61,45.0]
[1720991772707,1.06454996,146.68,146.62,1.36377754]
[1720991772923,10.99,146.66,146.62,1.36377754]
[1720991773303,1.06454996,146.68,146.62,1.36377754]
[1720991773503,15.3748,146.69,146.62,12.35377754]
[1720991773802,12.05454996,146.68,146.63,55.99]
[1720991774018,10.99,146.67,146.64,46.36367509]
[1720991774218,12.05454996,146.68,146.62,1.36367518]
[1720991774418,12.05454996,146.68,146.63,10.99]
[1720991774710,12.05454996,146.68,146.64,46.3636755]
[1720991775428,10.99,146.68,146.65,1.36367596]
[1720991776024,0.2,146.69,146.65,1.36367596]
[1720991776436,11.19,146.69,146.65,1.36367596]
[1720991777437,11.19,146.69,146.64,55.99]
[1720991777839,11.19,146.69,146.65,1.36350757]
[1720991778141,11.19,146.69,146.64,55.99]
[1720991778447,10.99,146.68,146.64,45.0]
[1720991779040,10.99,146.68,146.61,26.1701]
[1720991779233,10.99,146.67,146.62,10.99]
[1720991779442,10.99,146.67,146.63,1.36366797]
[1720991779647,0.2,146.69,146.62,10.99]
[1720991779834,10.99,146.67,146.62,10.99]
[1720991780136,10.99,146.67,146.62,13.32064608]
[1720991780939,0.2,146.69,146.63,13.32048713]
[1720991781141,10.99,146.68,146.64,45.0]
[1720991781316,10.99,146.67,146.64,45.0]
[1720991781519,10.99,146.67,146.63,47.33048713]
[1720991782215,0.2,146.69,146.63,47.33048713]
[1720991782416,10.99,146.67,146.63,47.33048713]
[1720991783034,10.99,146.67,146.64,45.0]
[1720991783237,10.99,146.67,146.63,2.33048713]
[1720991785142,0.2,146.69,146.63,2.33048713]
[1720991785315,10.99,146.67,146.64,1.36369105]
[1720991785717,10.99,146.67,146.63,2.33048713]
[1720991787317,10.99,146.66,146.63,2.33048713]
[1720991787517,10.99,146.67,146.63,2.33048713]
[1720991791943,0.2,146.69,146.63,14.68418662]
[1720991792153,0.2,146.69,146.64,45.0]
[1720991792365,10.99,146.68,146.65,1.3635416]
[1720991793246,10.99,146.68,146.64,45.0]
[1720991793447,10.99,146.68,146.65,1.36353662]
[1720991794676,9.99,146.68,146.65,1.36353662]
[1720991795738,0.2,146.69,146.64,45.0]
[1720991795937,10.99,146.68,146.63,58.32048713]
[1720991796868,0.2,146.69,146.64,12.35351371]
[1720991797053,11.19,146.69,146.65,46.36346682]
[1720991798064,11.19,146.69,146.65,45.0]
[1720991800180,0.2,146.69,146.65,46.36346711]
[1720991800466,11.19,146.69,146.65,45.0]
[1720991801182,12.05454996,146.68,146.65,45.0]
[1720991801465,10.99,146.67,146.64,45.0]
[1720991801670,12.25454996,146.69,146.64,10.99]
[1720991801874,12.25454996,146.69,146.65,45.0]
[1720991802247,10.99,146.68,146.65,45.0]
[1720991802463,10.99,146.68,146.64,45.0]
[1720991803063,11.19,146.69,146.64,55.99]
[1720991806745,12.05454996,146.68,146.64,45.0]
[1720991807175,11.19,146.69,146.64,55.99]
[1720991808567,10.99,146.68,146.64,45.0]
[1720991808771,10.99,146.68,146.65,1.36354483]
[1720991808959,11.19,146.69,146.64,55.99]
[1720991811649,0.2,146.69,146.64,55.99]
[1720991811854,0.2,146.69,146.68,10.99]
[1720991812049,0.2,146.69,146.68,55.99]
[1720991812848,0.2,146.69,146.68,57.35311681]
[1720991813958,0.2,146.69,146.68,55.99]
[1720991816579,0.2,146.69,146.68,45.0]
[1720991816894,0.2,146.69,146.68,55.99]
[1720991818985,0.2,146.69,146.68,45.0]
[1720991820065,0.2,146.69,146.68,55.99]
[1720991820389,0.2,146.69,146.68,57.35314152]
[1720991821479,0.2,146.69,146.68,56.66264175]
[1720991822392,0.2,146.69,146.68,66.66264175]
[1720991822688,0.2,146.69,146.68,68.99233447]
[1720991822896,0.2,146.69,146.68,67.62919295]
[1720991823892,0.2,146.69,146.68,68.99207753]
[1720991824072,0.2,146.69,146.68,67.62919295]
[1720991824581,0.2,146.69,146.68,57.62919295]
[1720991825465,0.2,146.69,146.68,67.62919295]
[1720991825664,0.2,146.69,146.68,57.62919295]
[1720991825866,0.2,146.69,146.68,67.62919295]
[1720991826300,0.2,146.69,146.68,68.99205752]
[1720991827588,0.2,146.69,146.68,67.62919295]
[1720991829594,0.2,146.69,146.68,68.99193311]
[1720991830686,0.8650825,146.75,146.71,10.0]
[1720991830879,0.8650825,146.75,146.74,10.99]
[1720991831380,0.8650825,146.75,146.74,47.32874014]
[1720991831577,0.8650825,146.75,146.74,58.31874014]
[1720991831996,0.8650825,146.75,146.74,78.31874014]
[1720991832213,5.0,146.78,146.74,78.31874014]
[1720991832395,35.11384996,146.86,146.77,10.99]
[1720991832705,7.89300017,146.87,146.77,13.31826414]
[1720991833004,10.99,146.82,146.77,13.31826414]
[1720991833294,63.96,146.86,146.77,13.31826414]
[1720991833295,10.99,146.81,146.77,2.32826414]
[1720991833673,7.89300017,146.87,146.78,2.32810552]
[1720991833901,10.99,146.82,146.78,2.32810552]
[1720991834278,7.89300017,146.87,146.78,2.32810552]
[1720991834487,7.89300017,146.87,146.79,12.35216317]
[1720991834690,10.99,146.83,146.8,45.0]
[1720991834893,3.80054626,146.89,146.78,47.32810552]
[1720991834894,10.99,146.82,146.78,47.32810552]
[1720991835068,6.18931713,146.88,146.78,47.32810552]
[1720991835275,10.99,146.84,146.79,12.35209696]
[1720991835482,10.99,146.84,146.8,45.0]
[1720991835695,10.99,146.83,146.8,45.0]
[1720991835893,10.99,146.83,146.79,45.0]
[1720991836304,22.8034,146.86,146.79,45.0]
[1720991836485,10.99,146.83,146.78,58.31810552]
[1720991836803,10.99,146.83,146.78,47.32810552]
[1720991837006,20.0,146.85,146.78,47.32810552]
[1720991837180,10.99,146.81,146.78,2.32810552]
[1720991837505,10.99,146.82,146.78,2.32810552]
[1720991838002,20.0,146.85,146.78,13.31810552]
[1720991838306,10.99,146.82,146.79,45.0]
[1720991838485,20.0,146.85,146.78,2.32810552]
[1720991839190,20.0,146.85,146.79,10.0]
[1720991839501,10.99,146.83,146.78,10.99]
[1720991839903,10.99,146.83,146.77,42.32810552]
[1720991839904,10.99,146.82,146.77,42.32810552]
[1720991840093,10.99,146.82,146.77,53.31810552]
[1720991841005,10.99,146.82,146.77,43.31810552]
[1720991841503,20.0,146.85,146.77,53.31810552]
[1720991841706,10.99,146.82,146.77,53.31810552]
[1720991842412,10.99,146.82,146.77,43.31810552]
[1720991842593,10.99,146.82,146.77,53.31810552]
[1720991843302,10.99,146.82,146.77,43.31810552]
[1720991843613,20.0,146.85,146.77,53.31810552]
[1720991843798,10.99,146.83,146.78,10.99]
[1720991843994,10.99,146.83,146.79,45.0]
[1720991844201,10.99,146.82,146.79,45.0]
[1720991844410,10.99,146.82,146.78,45.0]
[1720991844722,22.8034,146.86,146.79,10.0]
[1720991844889,10.99,146.85,146.8,57.35199029]
[1720991845088,10.99,146.83,146.8,45.0]
[1720991846222,10.99,146.83,146.79,55.99]
[1720991847490,33.7934,146.86,146.79,45.0]
[1720991847691,20.0,146.85,146.79,45.0]
[1720991848001,10.99,146.83,146.8,1.3622686]
[1720991848891,20.0,146.85,146.79,45.0]
[1720991849191,10.99,146.81,146.78,45.0]
[1720991849395,10.99,146.81,146.77,45.0]
[1720991850304,20.0,146.85,146.77,45.0]
[1720991850627,10.99,146.8,146.77,45.0]
[1720991850795,10.99,146.8,146.76,45.0]
[1720991851402,20.0,146.85,146.76,45.0]
[1720991851620,10.99,146.79,146.76,45.0]
[1720991851828,10.99,146.79,146.74,10.99]
[1720991852329,10.99,146.78,146.73,10.99]
[1720991853020,10.99,146.78,146.74,45.0]
[1720991853413,10.99,146.77,146.74,45.0]
[1720991853606,10.99,146.77,146.73,45.0]
[1720991853925,10.99,146.77,146.72,7.12934633]
[1720991854129,22.3916,146.81,146.72,7.12934633]
[1720991854312,22.3916,146.81,146.73,10.99]
[1720991854313,10.99,146.78,146.73,10.99]
[1720991854514,10.99,146.78,146.72,7.12934633]
[1720991854743,10.99,146.78,146.73,10.99]
[1720991854924,10.99,146.77,146.72,7.12934633]
[1720991855222,10.99,146.77,146.72,18.11934633]
[1720991855409,10.99,146.77,146.73,45.0]
[1720991856331,22.3916,146.81,146.73,55.99]
[1720991856332,10.99,146.78,146.73,55.99]
[1720991857220,22.3916,146.81,146.73,55.99]
[1720991857416,10.99,146.78,146.73,55.99]
[1720991858321,10.99,146.78,146.74,10.99]
[1720991858632,10.99,146.78,146.75,45.0]
[1720991859539,10.99,146.78,146.74,45.0]
[1720991860033,22.3916,146.81,146.75,10.99]
[1720991860233,10.99,146.8,146.76,45.0]
[1720991861033,22.3916,146.81,146.77,1.36247056]
[1720991861337,33.3816,146.81,146.76,45.0]
[1720991861538,10.99,146.8,146.75,55.99]
[1720991862715,10.99,146.8,146.76,1.36241048]
[1720991862926,10.99,146.8,146.75,55.99]
[1720991864115,10.99,146.8,146.76,1.36248489]
[1720991864437,10.99,146.8,146.77,1.36246523]
[1720991865331,10.99,146.8,146.76,1.36243124]
[1720991865551,10.99,146.8,146.77,1.36243132]
[1720991866548,10.99,146.8,146.76,1.36242692]
[1720991866738,10.99,146.8,146.77,1.36242789]
[1720991867751,10.99,146.8,146.76,1.36244564]
[1720991867935,33.3816,146.81,146.77,1.36237834]
[1720991868138,33.3816,146.81,146.77,46.36237834]
[1720991868330,10.99,146.8,146.77,45.0]
[1720991868734,10.99,146.8,146.76,45.0]
[1720991870551,22.3916,146.81,146.74,7.12874669]
[1720991870740,10.99,146.77,146.74,7.12874669]
[1720991870945,22.3916,146.81,146.74,18.11874669]
[1720991871130,10.99,146.8,146.75,10.99]
[1720991871827,10.99,146.8,146.76,45.0]
[1720991874350,10.99,146.8,146.77,1.36246445]
[1720991874550,10.99,146.8,146.76,45.0]
[1720991875948,10.99,146.8,146.77,1.36239011]
[1720991877164,22.3916,146.81,146.77,1.36239011]
[1720991877454,33.3816,146.81,146.77,1.36239011]
[1720991877654,22.3916,146.81,146.77,1.36239011]
[1720991877841,33.3816,146.81,146.77,1.36239011]
[1720991878438,33.3816,146.81,146.76,55.99]
[1720991878836,33.3816,146.81,146.76,57.3523805]
[1720991879240,22.3916,146.81,146.76,55.99]
[1720991879566,33.3816,146.81,146.76,55.99]
[1720991879851,10.99,146.82,146.77,12.35238117]
[1720991880155,10.99,146.83,146.78,55.99]
[1720991880461,10.99,146.83,146.79,1.36218071]
[1720991881538,22.5322,146.85,146.79,1.36218071]
[1720991881743,10.99,146.83,146.78,55.99]
[1720991881945,22.5322,146.85,146.78,55.99]
[1720991882149,10.99,146.83,146.79,1.36213167]
[1720991882341,20.0,146.84,146.79,12.35213167]
[1720991882342,10.99,146.84,146.79,12.35213167]
[1720991882548,10.99,146.84,146.8,45.0]
[1720991882738,10.99,146.83,146.8,45.0]
[1720991882962,10.99,146.83,146.81,1.36212935]
[1720991883153,10.99,146.83,146.8,1.36212935]
[1720991884139,10.99,146.83,146.79,45.0]
[1720991884448,10.99,146.83,146.8,1.36213053]
[1720991884846,10.99,146.83,146.79,45.0]
[1720991885648,22.5322,146.85,146.79,45.0]
[1720991885856,10.99,146.82,146.78,55.99]
[1720991886954,10.99,146.81,146.78,45.0]
[1720991887263,10.99,146.82,146.77,55.99]
[1720991888548,10.99,146.82,146.77,45.0]
[1720991888752,10.99,146.82,146.77,55.99]
[1720991888955,10.99,146.82,146.77,45.0]
[1720991889575,22.5322,146.85,146.77,45.0]
[1720991889772,10.99,146.82,146.77,45.0]
[1720991890257,22.5322,146.85,146.77,55.99]
[1720991890443,10.99,146.82,146.77,55.99]
[1720991891068,20.0,146.84,146.77,55.99]
[1720991891371,10.99,146.82,146.77,55.99]
[1720991896270,22.5322,146.85,146.77,55.99]
[1720991896271,10.99,146.83,146.78,1.36227539]
[1720991896473,22.5322,146.85,146.78,32.35227539]
[1720991896658,22.5322,146.85,146.79,45.0]
[1720991896659,10.99,146.83,146.79,45.0]
[1720991896862,10.99,146.83,146.8,1.36218482]
[1720991897864,10.99,146.85,146.8,12.35218482]
[1720991898172,10.99,146.85,146.81,45.0]
[1720991900758,10.99,146.84,146.81,45.0]
[1720991904781,1.0650825,146.89,146.81,45.0]
[1720991905467,10.99,146.85,146.81,45.0]
[1720991906161,3.8312208,146.89,146.8,45.0]
[1720991906369,10.99,146.84,146.8,45.0]
[1720991911695,1.0650825,146.89,146.8,45.0]
[1720991911883,10.99,146.84,146.8,45.0]
[1720991914394,10.99,146.84,146.81,1.36205232]
[1720991915089,1.0650825,146.89,146.81,1.36205232]
[1720991915401,10.99,146.84,146.8,45.0]
[1720991915698,1.0650825,146.89,146.81,12.35200587]
[1720991915699,10.99,146.86,146.81,12.35200587]
[1720991915865,10.99,146.86,146.82,45.0]
[1720991916069,10.99,146.86,146.83,1.36185878]
[1720991916269,1.0650825,146.89,146.83,1.36185878]
[1720991916695,10.99,146.86,146.83,1.36185878]
[1720991917406,1.0650825,146.89,146.82,45.0]
[1720991917407,1.0650825,146.89,146.84,10.99]
[1720991917575,10.99,146.85,146.82,55.0]
[1720991918170,10.99,146.84,146.82,55.0]
[1720991918394,10.99,146.84,146.82,45.0]
[1720991918692,10.99,146.84,146.81,45.0]
[1720991919205,10.99,146.83,146.81,45.0]
[1720991919381,10.99,146.83,146.81,55.0]
[1720991919705,1.0650825,146.89,146.81,55.0]
[1720991919706,10.99,146.84,146.81,55.0]
[1720991920172,1.0650825,146.89,146.82,10.0]
[1720991920372,10.99,146.86,146.83,45.0]
[1720991920674,1.0650825,146.89,146.83,45.0]
[1720991920675,10.99,146.85,146.83,45.0]
[1720991922093,1.0650825,146.89,146.83,45.0]
[1720991922280,10.99,146.85,146.83,45.0]
[1720991922688,1.0650825,146.89,146.83,45.0]
[1720991922883,10.99,146.85,146.83,45.0]
[1720991923284,1.0650825,146.89,146.83,45.0]
[1720991923484,10.99,146.85,146.83,45.0]
[1720991923700,10.99,146.86,146.83,45.0]
[1720991925493,1.0650825,146.89,146.83,45.0]
[1720991925696,10.99,146.86,146.83,45.0]
[1720991926087,10.99,146.84,146.83,45.0]
[1720991926781,10.99,146.84,146.82,45.0]
[1720991926983,10.99,146.83,146.82,45.0]
[1720991927399,43.96,146.86,146.82,45.0]
[1720991927599,10.99,146.83,146.82,45.0]
[1720991928807,10.99,146.83,146.81,7.12443434]
[1720991928998,1.0650825,146.89,146.82,1.36194176]
[1720991929184,10.99,146.83,146.82,1.36194176]
[1720991929511,10.99,146.83,146.81,7.12443434]
[1720991929689,1.0650825,146.89,146.81,7.12443434]
[1720991930008,10.99,146.82,146.81,7.12443434]
[1720991930306,10.99,146.82,146.81,52.12443434]
[1720991930603,10.99,146.82,146.81,7.12443434]
[1720991931804,16.5562,146.88,146.81,52.12443434]
[1720991932015,43.96,146.86,146.82,1.36185108]
[1720991932188,10.99,146.83,146.81,52.12443434]
[1720991932395,10.99,146.82,146.81,52.12443434]
[1720991933107,20.0,146.87,146.81,52.12443434]
[1720991933407,10.99,146.82,146.81,52.12443434]
[1720991934187,43.96,146.86,146.81,52.12443434]
[1720991934388,43.96,146.86,146.82,45.0]
[1720991934703,10.99,146.83,146.82,45.0]
[1720991936212,10.99,146.83,146.81,7.12443434]
[1720991936390,10.99,146.82,146.81,7.12443434]
[1720991939102,9.99,146.82,146.81,7.12443434]
[1720991939808,43.96,146.86,146.81,7.12443434]
[1720991940008,10.99,146.82,146.81,7.12443434]
[1720991942096,43.96,146.86,146.81,7.12443434]
[1720991942295,10.99,146.82,146.81,7.12443434]
[1720991942706,43.96,146.86,146.81,7.12443434]
[1720991942904,10.99,146.82,146.81,7.12443434]
[1720991943219,43.96,146.86,146.81,8.48648324]
[1720991943433,10.99,146.82,146.81,7.12443434]
[1720991945828,1.0650825,146.89,146.81,7.12443434]
[1720991946127,43.96,146.86,146.82,45.0]
[1720991946425,10.99,146.83,146.82,45.0]
[1720991947308,1.0650825,146.89,146.82,45.0]
[1720991947515,10.99,146.86,146.82,45.0]
[1720991948221,10.99,146.85,146.82,45.0]
[1720991949626,1.0650825,146.89,146.82,45.0]
[1720991949930,10.99,146.86,146.81,18.11534014]
[1720991950224,10.99,146.86,146.82,1.36181008]
[1720991950608,10.99,146.86,146.81,18.11534014]
[1720991951009,1.0650825,146.89,146.81,18.11534014]
[1720991951307,10.99,146.86,146.81,7.12534014]
[1720991951520,10.99,146.86,146.82,1.36181683]
[1720991951720,10.99,146.86,146.81,18.11534014]
[1720991952432,10.99,146.86,146.82,1.36181335]
[1720991952999,1.0650825,146.89,146.82,46.36181335]
[1720991953206,10.99,146.86,146.82,46.36181335]
[1720991953406,10.99,146.86,146.82,45.0]
[1720991954329,1.0650825,146.89,146.82,45.0]
[1720991954520,1.0650825,146.89,146.83,1.36176625]
[1720991954717,10.99,146.86,146.82,45.0]
[1720991954932,10.99,146.86,146.81,17.12534014]
[1720991955133,10.99,146.86,146.81,7.12534014]
[1720991955333,10.99,146.86,146.81,18.11534014]
[1720991956229,10.99,146.85,146.81,7.12534014]
[1720991957234,1.0650825,146.89,146.81,7.12534014]
[1720991957235,10.99,146.86,146.81,7.12534014]
[1720991957414,10.99,146.86,146.81,18.11534014]
[1720991957728,1.0650825,146.89,146.81,18.11534014]
[1720991957937,10.99,146.86,146.81,18.11534014]
[1720991958507,10.99,146.86,146.81,7.12534014]
[1720991958709,1.0650825,146.89,146.81,7.12534014]
[1720991958919,10.99,146.86,146.81,7.12534014]
[1720991961641,10.99,146.85,146.81,7.12534014]
[1720991961815,1.0650825,146.89,146.81,7.12534014]
[1720991962208,10.99,146.82,146.81,7.12534014]
[1720991965223,1.0650825,146.89,146.81,7.12534014]
[1720991965414,15.8342,146.88,146.81,7.12534014]
[1720991965614,10.99,146.82,146.81,7.12534014]
[1720991967632,15.8342,146.88,146.81,7.12534014]
[1720991967846,10.99,146.82,146.81,7.12534014]
[1720991968522,10.99,146.82,146.79,7.1179986]
[1720991968736,10.99,146.8,146.79,7.1179986]
[1720991973741,10.99,146.8,146.79,27.1179986]
[1720991973946,18.62862999,146.88,146.79,72.1179986]
[1720991974155,10.99,146.81,146.8,45.0]
[1720991974657,18.62862999,146.88,146.8,45.0]
[1720991974875,43.96,146.86,146.81,1.36192765]
[1720991975062,10.99,146.82,146.81,1.36192765]
[1720991975350,10.99,146.82,146.8,46.36205183]
[1720991975555,10.99,146.81,146.8,46.36205183]
[1720991976242,10.99,146.81,146.8,45.0]
[1720991977162,43.96,146.86,146.8,45.0]
[1720991977350,10.99,146.81,146.8,45.0]
[1720991981347,10.99,146.81,146.79,17.1179986]
[1720991981550,10.99,146.8,146.79,17.1179986]
[1720991983635,18.62862999,146.88,146.79,17.1179986]
[1720991983965,10.99,146.8,146.79,17.1179986]
[1720991985038,10.99,146.8,146.79,62.1179986]
[1720991985547,10.99,146.8,146.79,7.1179986]
[1720991988757,15.4097,146.84,146.79,7.1179986]
[1720991988951,10.99,146.8,146.79,7.1179986]
[1720991990339,15.4097,146.84,146.79,7.1179986]
[1720991990545,10.99,146.8,146.79,7.1179986]
[1720991991662,54.95,146.8,146.79,7.1179986]
[1720991993948,54.95,146.8,146.72,1.36262723]
[1720991993949,74.95,146.8,146.72,1.36262723]
[1720991994278,10.99,146.74,146.73,7.12827369]
[1720991994948,10.99,146.74,146.73,52.12827369]
[1720991995461,10.99,146.74,146.73,7.12827369]
[1720991995660,43.96,146.79,146.73,7.12827369]
[1720991995860,10.99,146.74,146.73,7.12827369]
[1720992000564,10.99,146.74,146.73,62.12827369]
[1720992000762,10.99,146.74,146.73,72.12827369]
[1720992000972,43.96,146.79,146.73,72.12827369]
[1720992001187,20.0,146.8,146.75,20.0]
[1720992001367,10.99,146.77,146.75,10.0]
[1720992001569,20.0,146.8,146.76,45.0]
[1720992001870,10.99,146.77,146.76,45.0]
[1720992002967,10.99,146.77,146.75,10.0]
[1720992003171,10.99,146.76,146.75,10.0]
[1720992003573,20.0,146.83,146.75,55.0]
[1720992003775,10.99,146.76,146.75,55.0]
[1720992004090,10.99,146.76,146.75,45.0]
[1720992004295,20.0,146.83,146.74,45.0]
[1720992004490,10.99,146.76,146.75,10.0]
[1720992004686,10.99,146.76,146.75,55.0]
[1720992004893,10.99,146.76,146.75,45.0]
[1720992005070,10.99,146.76,146.74,45.0]
[1720992005372,10.99,146.75,146.74,45.0]
[1720992008379,10.99,146.75,146.74,55.0]
[1720992008781,20.0,146.83,146.75,10.0]
[1720992008979,20.0,146.83,146.77,10.0]
[1720992009301,10.99,146.78,146.76,10.0]
[1720992009485,10.99,146.77,146.76,10.0]
[1720992009685,10.99,146.77,146.73,17.12454082]
[1720992009989,10.99,146.79,146.74,20.0]
[1720992010181,10.99,146.75,146.74,20.0]
[1720992010383,6.2026,146.8,146.74,20.0]
[1720992010704,10.99,146.75,146.74,20.0]
[1720992016408,10.99,146.75,146.74,21.36271014]
[1720992018227,10.99,146.75,146.74,20.0]
[1720992019421,15.3896,146.79,146.75,10.0]
[1720992019971,10.99,146.76,146.75,10.0]
[1720992020630,10.99,146.76,146.75,11.36258905]
[1720992022936,10.99,146.76,146.75,10.0]
[1720992023432,10.99,146.76,146.74,20.0]
[1720992023637,10.99,146.75,146.74,20.0]
[1720992023808,10.99,146.75,146.74,65.0]
[1720992024323,43.96,146.79,146.74,65.0]
[1720992024324,32.97,146.79,146.75,10.0]
[1720992024530,10.99,146.76,146.75,10.0]
[1720992025319,15.3896,146.82,146.75,10.0]
[1720992025637,10.99,146.76,146.75,10.0]
[1720992025936,10.99,146.76,146.75,55.0]
[1720992026326,15.3896,146.82,146.75,55.0]
[1720992026522,10.99,146.76,146.75,55.0]
[1720992026730,6.1117,146.84,146.78,10.0]
[1720992026910,6.1117,146.84,146.77,10.0]
[1720992026911,10.99,146.79,146.77,10.0]
[1720992027111,6.1117,146.84,146.79,10.0]
[1720992027326,10.99,146.8,146.79,10.0]
[1720992027733,6.1117,146.84,146.79,10.0]
[1720992027940,10.99,146.8,146.79,10.0]
[1720992029248,16.4814,146.86,146.79,10.0]
[1720992029539,16.4814,146.86,146.81,10.0]
[1720992029842,10.99,146.82,146.79,10.0]
[1720992030007,16.4814,146.86,146.79,10.0]
[1720992030427,15.5454,146.88,146.81,10.0]
[1720992030632,15.5454,146.88,146.79,20.0]